Workbook

Sheet Проемы_ТХ
B3: Окна ПВХ
B4: ОП 2400-1500 (ОИ4) | D4: 2000Х1500 (h 1500) Поз. № 2 | F4: ОП 2400-3550 (ОИ6*) | H4: ОП 2400-3000 (ОИ7) | J4: ОП 2200-3600 (ОИ8) | L4: ОП 2200-1200 (ОИ10) | N4: ОП 2200-1200 (ОИ10)
C5: =2.4*1.5 -> 3.6 | E5: =2*1.5 -> 3 | G5: =2.4*3.55 -> 8.52 | I5: =2.4*3 -> 7.2 | K5: =2.2*3.6 -> 7.92 | M5: =2.2*1.2 -> 2.64 | O5: =2.2*1.2 -> 2.64 | AE5: Площадь, м2. | AF5: Длина, м. | AG5: Высота, м. | AH5: Площадь, м2. | AI5: Длина, м. | AJ5: Высота, м. | AK5: Площадь, м2. | AL5: Длина, м. | AM5: Длина, м. | AN5: Длина, м. | AO5: Длина, м. | AP5: Длина, м. | AQ5: Длина, м. | AR5: Длина, м. | AS5: Длина, м. | AT5: Длина, м. | AU5: Длина, м. | AV5: Длина, м. | AW5: Высота, м. | AX5: Площадь, м2. | AY5: Длина, м. | AZ5: Длина, м. | BA5: Длина, м. | BB5: Длина, м. | BC5: Длина, м. | BD5: Длина, м. | BE5: Длина, м. | BF5: Длина, м. | BG5: Высота, м. | BH5: Площадь, м2.
B6: шт. | C6: м2. | D6: шт. | E6: м2. | F6: шт. | G6: м2. | H6: шт. | I6: м2. | J6: шт. | K6: м2. | L6: шт. | M6: м2. | N6: шт. | O6: м2.
B11: Окна ПВХ | AI11: 1 | BV11: =SUM(B11:BT11) -> 1
B12: (ОИ4), Поз. № 4 | D12: (ОИ6), Поз. № 6 | F12: (ОИ6*), Поз. № 6* | H12: (ОИ7), Поз. № 7 | J12: (ОИ8), Поз. № 8 | L12: (ОИ10), Поз. № 10 | N12: ОИ10 | AI12: =AI11*#REF! -> 
B13: шт. | C13: м2. | D13: шт. | E13: м2. | F13: шт. | G13: м2. | H13: шт. | I13: м2. | J13: шт. | K13: м2. | L13: шт. | M13: м2. | N13: шт. | O13: м2. | AF13: =#REF!*#REF! -> 
BV14: 0
BV15: 0
BV16: 0
BV17: 0
BV18: 0
BV19: 0

Sheet Таблица 1
B3: Наименование изделия | C3: Позиция | D3: Шифр | E3: Площадь, м2. | G3: Размеры проемов, мм.
B4: Окна ПВХ ГОСТ 30674-99 | C4: 1 | D4: ОП 1200-1800 (ОИ-1), Поз. №1 | E4: =G4*H4/1000000 -> 2.16 | G4: 1200 | H4: 1800
C5: 2 | D5: ОП 1200-1200 (ОИ-2), Поз. №2 | E5: =G5*H5/1000000 -> 1.44 | G5: 1200 | H5: 1200
C6: 3 | D6: ОП 1800-1200 (ОИ-3), Поз. №3 | E6: 2.16 | G6: 1800 | H6: 1200
C7: 4 | D7: ОП 2400-1500 (ОИ-4), Поз. №4 | E7: 3.6 | G7: 2400 | H7: 1500
C8: 4* | D8: ОП 2300-1500 (ОИ-4*), Поз. №4* | E8: 3.45 | G8: 2300 | H8: 1500
C9: 5 | D9: ОП 2400-1200 (ОИ-5), Поз. №5 | E9: 2.88 | G9: 2400 | H9: 1200
C10: 6 | D10: ОП 2400-3600 (ОИ-6), Поз. №6 | E10: 8.64 | G10: 2400 | H10: 3600
C11: 6* | D11: ОП 2400-3550 (ОИ-6*), Поз. №6* | E11: 8.52 | G11: 2400 | H11: 3550
C12: 7 | D12: ОП 2400-3000 (ОИ-7), Поз. №7 | E12: 7.2 | G12: 2400 | H12: 3000
C13: 8 | D13: ОП 2200-3600 (ОИ-8), Поз. №8 | E13: 7.92 | G13: 2200 | H13: 3600
C14: 9 | D14: ОП 1700-3600 (ОИ-9), Поз. №9 | E14: 6.12 | G14: 1700 | H14: 3600
C15: 10 | D15: ОП 2200-1200 (ОИ-10), Поз. №10 | E15: 2.64 | G15: 2200 | H15: 1200
C16: 11 | D16: ОП 1700-1500 (ОИ-11), Поз. №11 | E16: 2.55 | G16: 1700 | H16: 1500
B17: Витражи алюминиевые ГОСТ 21519-2003 | C17: 12 | D17: ОАК 4500-5600 (ВИ-1), Поз. №12 | E17: 25.2 | G17: 4500 | H17: 5600
C18: 13 | D18: ОАК 10400-1500 (ВИ-2), Поз. №13 | E18: 15.6 | G18: 10400 | H18: 1500
C19: 13' | D19: ОАК 10400-820 (ВИ-2'), Поз. №13' | E19: 8.528 | G19: 10400 | H19: 820
C20: 14 | D20: ОАК 2400-4800 (ВИ-3), Поз. №14 | E20: 11.52 | G20: 2400 | H20: 4800
C21: 15 | D21: ОП 2200-4800 (ВИ-4), Поз. №15 | E21: 10.56 | G21: 2200 | H21: 4800 | CA21: =SUM(D21:BY21) -> 7010.56
C22: 16 | D22: ОП 4280-4250 (ВИ-5), Поз. №16 | E22: 18.19 | G22: 4280 | H22: 4250 | CA22: =SUM(D22:BY22) -> 8548.19
B23: Жалюзийные решетки НПРМ Сборник 20 | C23: 17 | D23: РШ-1 1800-1600 (h) | E23: 2.88 | G23: 1800 | H23: 1600 | CA23: =SUM(D23:BY23) -> 3402.88
C24: 18 | D24: РШ-2 1200-1200 (h) | E24: 1.44 | G24: 1200 | H24: 1200 | CA24: 2401.44
C25: 19 | D25: РШ-3 1200-2400 (h) | E25: 2.88 | G25: 1200 | H25: 2400 | CA25: 3602.88
C26: 20 | D26: РШ-4 400-800 (h) | E26: 0.32 | G26: 400 | H26: 800 | CA26: 1200.32
B27: Двери наружные ПВХ ГОСТ 30970-2002 | C27: 21 | D27: ДН О Пр 2100-1350, Поз. №21 | E27: 2.992 | G27: 2200 | H27: 1360 | CA27: 3562.992
C28: 22 | D28: ДН О Л 2100-1350, Поз. №22 | E28: 2.992 | G28: 2200 | H28: 1360 | CA28: 3562.992
C29: 23 | D29: ДН О Ф 2600-1510, Поз. №23 | E29: 4.104 | G29: 2700 | H29: 1520 | CA29: 4224.104
B30: Двери внутренние деревянные ГОСТ 6629-88 | C30: 24 | D30: ДГ 21-7, Поз. №24 | E30: 1.562 | G30: 2200 | H30: 710 | CA30: 2911.562
C31: 25 | D31: ДГ 21-7л, Поз. №25 | E31: 1.562 | G31: 2200 | H31: 710
C32: 26 | D32: ДГ 21-8, Поз. №26 | E32: 1.782 | G32: 2200 | H32: 810
C33: 27 | D33: ДГ 21-8л, Поз. №27 | E33: 1.782 | G33: 2200 | H33: 810
C34: 28 | D34: ДГ 21-9, Поз. №28 | E34: 2.002 | G34: 2200 | H34: 910
C35: 29 | D35: ДГ 21-9л, Поз. №29 | E35: 2.002 | G35: 2200 | H35: 910
C36: 30 | D36: ДГ 21-10, Поз. №30 | E36: 2.222 | G36: 2200 | H36: 1010
C37: 31 | D37: ДГ 21-10л, Поз. №31 | E37: 2.222 | G37: 2200 | H37: 1010
C38: 32 | D38: ДГ 21-12, Поз. №32 | E38: 2.662 | G38: 2200 | H38: 1210
C39: 33 | D39: ДГ 21-12л, Поз. №33 | E39: 2.662 | G39: 2200 | H39: 1210
C40: 34 | D40: ДГ 24-15, Поз. №34 | E40: 3.775 | G40: 2500 | H40: 1510
C41: 35 | D41: ДГ 24-19, Поз. №35 | E41: 4.775 | G41: 2500 | H41: 1910
B42: Двери внутренние ПВХ ГОСТ 30970-2002 | C42: 36 | D42: ДПВ О Б Дв 2400-1500, Поз. №36 | E42: 3.775 | G42: 2500 | H42: 1510
C43: 37 | D43: ДПВ Б Пр 2100-1350, Поз. №37 | E43: 2.992 | G43: 2200 | H43: 1360
C44: 38 | D44: ДПВ Б Л 2100-1350, Поз. №38 | E44: =G44*H44/1000000 -> 2.992 | G44: 2200 | H44: 1360
B45: Двери внутренние деревянные ГОСТ 30970-2002 | C45: 39 | D45: ДГ 21-10 Т, трудносгораемые Поз. №39 | E45: 2.222 | G45: 2200 | H45: 1010
C46: 40 | D46: ДГ 21-10лТ, трудносгораемые, Поз. №40 | E46: 2.222 | G46: 2200 | H46: 1010
B47: Двери наружные деревянные ГОСТ 30970-2002 | C47: 41 | D47: ДН 21-9, Поз. №41 | E47: 2.002 | G47: 2200 | H47: 910
C48: 42 | D48: ДН 21-9л, Поз. №42 | E48: 2.002 | G48: 2200 | H48: 910
C49: 43 | D49: ДН 21-15Б, Поз. №43 | E49: 3.322 | G49: 2200 | H49: 1510
B50: Двери индивидуальные | C50: 44 | D50: ДНИ-1; Поз. №44 | E50: 0
C51: 45 | D51: ДНИ-1л; Поз. №45 | E51: 0
C52: 46 | D52: ДВИ-1Л; трудносгораемые, Поз. №46 | E52: 0
B53: Двери и люки для вент/камер, Серия 5.904-4 | C53: 47 | D53: ДУ 12,5-5; Поз. №47 | E53: =G53*H53/1000000 -> 0
C54: 48 | E54: 0
C55: 49 | E55: 0

Sheet Проба
B3: Высота помещения, м. | C3: 3680
C4: 3500
C5: 2700
C6: 2520
AG7: ШАБЛОН
B10: шириной мм. | C10: 300 | I10: 1 | S10: 2 | AG10: 0
L11: Заполнение проемов | M11: Отверстия ВК | N11: Отверстия ВК | O11: Отверстия ТХ | V11: Заполнение проемов | W11: Отверстия ВК | X11: Отверстия ВК | Y11: Отверстия ТХ | AJ11: Заполнение проемов | AK11: Отверстия ВК | AL11: Отверстия ВК | AM11: Отверстия ТХ
L12: 10 | V12: 21
L13: =INDEX('Таблица 1'!$C$3:$E$55,MATCH(L12,'Таблица 1'!$C$3:$C$55,0)) ->  | V13: ДН О Пр 2100-1350, Поз. №21
I14: Длина, м. | J14: Высота, м. | K14: Площадь, м2. | L14: Площадь проема, м2. | M14: Площадь проема, м2. | N14: Площадь проема, м2. | O14: Площадь проема, м2. | P14: Объем, м3. | S14: Длина, м. | T14: Высота, м. | U14: Площадь, м2. | V14: Площадь проема, м2. | W14: Площадь проема, м2. | X14: Площадь проема, м2. | Y14: Площадь проема, м2. | Z14: Объем, м3. | AG14: Длина, м. | AH14: Высота, м. | AI14: Площадь, м2. | AJ14: Площадь проема, м2. | AK14: Площадь проема, м2. | AL14: Площадь проема, м2. | AM14: Площадь проема, м2. | AN14: Объем, м3.
I15: 4700 | J15: 3680 | K15: =I15*J15/1000000 -> 17.296 | L15: ='Таблица 1'!E17 -> 25.2 | P15: =((K15-(SUM(L15:O15)))*$C$10)/1000 -> -2.3712 | S15: 4700 | T15: 3680 | U15: =S15*T15/1000000 -> 17.296 | V15: ='Таблица 1'!E27 -> 2.992 | Z15: =((U15-(SUM(V15:Y15)))*$C$10)/1000 -> 4.2912 | AG15: 4700 | AH15: 3680 | AI15: =AG15*AH15/1000000 -> 17.296 | AN15: =(AI15-(SUM(AJ15:AM15)*($I$22/1000))) -> 17.296

Sheet Лист3
